fUSD/lending_fUSD_20241018
["ID","MTS","AMOUNT","RATE_DAILY","PERIOD"]
[340413791,1729224110186,250.0,9.734e-05,2]
[340413792,1729224140322,250.0,9.732e-05,2]
[340413793,1729224158890,488.56,8.219e-05,2]
[340413794,1729224261397,1800.0,0.000103,3]
[340413795,1729224263275,3700.0,0.000104,3]
[340413796,1729224265363,5600.0,0.000105,3]
[340413797,1729224321432,200.0,9.745e-05,2]
[340413798,1729224368150,23900.0,9.749e-05,2]
[340413799,1729224431868,1400.0,0.000103,3]
[340413800,1729224433986,2800.0,0.000104,3]
[340413801,1729224436064,4200.0,0.000105,3]
[340413802,1729224451152,-3664.6698675,0.00010409,2]
[340413803,1729224529686,1200.0,0.000215,40]
[340413804,1729224547903,1070.34777381,0.00025,120]
[340413813,1729224632060,-939.33967685,0.00010409,2]
[340413814,1729224632072,-1333.02604015,0.00010409,2]
[340413815,1729224632081,-488.56,0.00010462,2]
[340413816,1729224632090,-2178.41395985,0.000106,3]
[340413817,1729224632102,-3421.58604015,0.000106,3]
[340413818,1729224632110,-150.0,0.00010626,2]
[340413819,1729224632121,-150.0,0.0001063,2]
[340413820,1729224632131,-150.0,0.00010631,2]
[340413821,1729224632143,-150.0,0.00010652,2]
[340413822,1729224632153,-150.0,0.00010652,2]
[340413823,1729224632163,-150.0,0.00010653,2]
[340413824,1729224632171,-150.0,0.00010659,2]
[340413825,1729224632181,-150.0,0.0001066,2]
[340413826,1729224632191,-150.0,0.00010663,2]
[340413827,1729224632200,-150.0,0.00010664,2]
[340413828,1729224632211,-300.0,0.00010664,2]
[340413829,1729224632220,-1500.0,0.00010665,2]
[340413830,1729224632229,-1500.0,0.00010665,2]
[340413831,1729224632238,-150.0,0.00010668,2]
[340413832,1729224632247,-1500.0,0.00010668,2]
[340413833,1729224632259,-150.0,0.00010669,2]
[340413834,1729224632269,-150.0,0.00010669,2]
[340413835,1729224632281,-150.0,0.00010669,2]
[340413836,1729224632291,-1500.0,0.00010669,2]
[340413837,1729224632300,-150.0,0.00010673,2]
[340413838,1729224632310,-1500.0,0.00010673,2]
[340413839,1729224632321,-150.0,0.00010674,2]
[340413840,1729224632331,-1500.0,0.00010674,2]
[340413841,1729224632341,-256.06906159,0.00010682,2]
[340413842,1729224632351,-150.0,0.00010687,2]
[340413843,1729224632361,-150.0,0.0001069,2]
[340413844,1729224632371,-150.0,0.00010696,2]
[340413845,1729224632382,-150.0,0.00010697,2]
[340413846,1729224632392,-150.0,0.00010697,2]
[340413847,1729224632402,-150.0,0.00010698,2]
[340413848,1729224632412,-7000.0,0.000107,3]
[340413849,1729224632422,-1500.0,0.00010701,2]
[340413850,1729224632431,-150.0,0.00010702,2]
[340413851,1729224632440,-150.0,0.00010703,2]
[340413852,1729224632450,-150.0,0.00010703,2]
[340413853,1729224632461,-150.0,0.00010711,2]
[340413854,1729224632469,-150.0,0.00010712,2]
[340413855,1729224632479,-150.0,0.00010712,2]
[340413856,1729224632488,-150.0,0.00010712,2]
[340413857,1729224632497,-587.09080251,0.00010713,2]
[340413858,1729224632506,-150.0,0.00010718,2]
[340413859,1729224632515,-1500.0,0.00010718,2]
[340413860,1729224632524,-150.0,0.00010722,2]
[340413862,1729224632533,-150.0,0.00010725,2]
[340413864,1729224632543,-150.0,0.00010726,2]
[340413866,1729224632552,-150.0,0.00010727,2]
[340413869,1729224632562,-150.0,0.00010728,2]
[340413870,1729224632571,-150.0,0.00010729,2]
[340413872,1729224632579,-150.0,0.00010734,2]
[340413874,1729224632589,-150.0,0.00010735,2]
[340413877,1729224632598,-150.0,0.00010736,2]
[340413879,1729224632607,-150.0,0.00010736,2]
[340413880,1729224632616,-150.0,0.00010737,2]
[340413882,1729224632626,-1500.0,0.00010737,2]
[340413884,1729224632635,-150.0,0.0001074,2]
[340413887,1729224632644,-150.0,0.00010742,2]
[340413889,1729224632653,-150.0,0.00010742,2]
[340413891,1729224632663,-150.0,0.00010743,2]
[340413893,1729224632672,-996.77205123,0.00010744,2]
[340413894,1729224632681,-1500.0,0.00010748,2]
[340413897,1729224632690,-150.0,0.00010751,2]
[340413898,1729224632699,-150.0,0.00010752,2]
[340413899,1729224632708,-150.0,0.00010757,2]
[340413900,1729224632718,-150.0,0.0001076,2]
[340413901,1729224632727,-150.0,0.0001076,2]
[340413902,1729224632736,-1500.0,0.00010761,2]
[340413903,1729224632745,-150.0,0.00010763,2]
[340413904,1729224632754,-1500.0,0.00010763,2]
[340413905,1729224632763,-150.0,0.00010764,2]
[340413906,1729224632773,-150.0,0.00010764,2]
[340413907,1729224632782,-150.0,0.00010765,2]
[340413908,1729224632792,-150.0,0.00010766,2]
[340413909,1729224632801,-150.0,0.0001077,2]
[340413910,1729224632811,-150.0,0.0001077,2]
[340413911,1729224632820,-150.0,0.0001077,2]
[340413912,1729224632829,-1500.0,0.0001077,2]
[340413913,1729224632838,-150.0,0.00010771,2]
[340413914,1729224632847,-150.0,0.00010772,2]
[340413915,1729224632856,-150.0,0.00010772,2]
[340413916,1729224632866,-150.0,0.00010773,2]
[340413917,1729224632875,-150.0,0.00010774,2]
[340413918,1729224632884,-150.0,0.00010779,2]
[340413919,1729224632893,-1500.0,0.00010782,2]
[340413920,1729224632905,-150.0,0.00010783,2]
[340413921,1729224632914,-254.07630985,0.00010786,2]
[340413922,1729224632923,-150.0,0.00010788,2]
[340413923,1729224632934,-150.0,0.00010788,2]
[340413924,1729224632945,-150.0,0.00010789,2]
[340413925,1729224632956,-1500.0,0.00010792,2]
[340413926,1729224632966,-150.0,0.00010793,2]
[340413927,1729224632976,-150.0,0.00010795,2]
[340413928,1729224632987,-150.0,0.00010799,2]
[340413929,1729224632998,-150.0,0.000108,2]
[340413930,1729224633008,-1400.0,0.000108,3]
[340413931,1729224633017,-423.73,0.000108,2]
[340413932,1729224633026,-150.76943602,0.00010801,2]
[340413933,1729224633035,-150.0,0.00010807,2]
[340413934,1729224633044,-150.0,0.00010807,2]
[340413935,1729224633053,-150.0,0.00010808,2]
[340413936,1729224633062,-1500.0,0.00010809,2]
[340413937,1729224633071,-1500.0,0.00010811,2]
[340413938,1729224633080,-150.0,0.00010813,2]
[340413939,1729224633089,-150.0,0.00010816,2]
[340413940,1729224633098,-150.0,0.00010817,2]
[340413941,1729224633107,-150.0,0.00010818,2]
[340413942,1729224633117,-150.0,0.00010823,2]
[340413943,1729224633125,-150.0,0.00010826,2]
[340413944,1729224633134,-150.0,0.00010827,2]
[340413945,1729224633143,-150.0,0.0001083,2]
[340413946,1729224633152,-150.0,0.00010833,2]
[340413947,1729224633163,-150.0,0.00010836,2]
[340413948,1729224633173,-581.0,0.00010837,2]
[340413949,1729224633183,-150.0,0.00010838,2]
[340413950,1729224633191,-150.0,0.00010842,2]
[340413951,1729224633201,-150.0,0.00010842,2]
[340413952,1729224633210,-150.0,0.00010844,2]
[340413953,1729224633220,-150.0,0.0001085,2]
[340413954,1729224633229,-494.1174,0.00010851,2]
[340413955,1729224633238,-150.0,0.00010851,2]
[340413956,1729224633247,-1500.0,0.00010851,2]
[340413957,1729224633257,-150.0,0.00010853,2]
[340413958,1729224633266,-150.0,0.00010854,2]
[340413959,1729224633276,-150.0,0.00010855,2]
[340413960,1729224633287,-1500.0,0.00010857,2]
[340413961,1729224633296,-150.0,0.00010858,2]
[340413962,1729224633306,-580.17207536,0.00010858,2]
[340413963,1729224633316,-16351.6569,0.00010858,2]
[340413964,1729224633327,-77572.7862,0.00010858,2]
[340413965,1729224633337,-1000.0,0.00010858,2]
[340413966,1729224633347,-1206.7691,0.00010858,2]
[340413967,1729224633356,-3325.8329,0.00010858,2]
[340413968,1729224633366,-6456.6106,0.00010858,2]
[340413969,1729224633376,-150.0,0.00010859,2]
[340413970,1729224633386,-1500.0,0.0001086,2]
[340413971,1729224633589,-452.44655675,0.00010861,2]
[340413972,1729224633599,-150.0,0.00010863,2]
[340413973,1729224633608,-150.0,0.00010863,2]
[340413974,1729224633618,-150.0,0.00010863,2]
[340413975,1729224633628,-150.0,0.00010878,2]
[340413976,1729224633637,-150.0,0.00010879,2]
[340413977,1729224633647,-150.0,0.00010879,2]
[340413978,1729224633659,-580.17207534,0.00010879,2]
[340413979,1729224633673,-150.0,0.0001088,2]
[340413980,1729224633682,-150.0,0.00010881,2]
[340413981,1729224633692,-1500.0,0.00010881,2]
[340413982,1729224633702,-150.0,0.00010886,2]
[340413983,1729224633711,-150.0,0.00010887,2]
[340413984,1729224633721,-150.0,0.00010887,2]
[340413985,1729224633730,-1500.0,0.00010888,2]
[340413986,1729224633740,-150.0,0.00010889,2]
[340413987,1729224633749,-150.0,0.00010889,2]
[340413988,1729224633759,-150.0,0.00010891,2]
[340413989,1729224633768,-150.0,0.00010892,2]
[340413990,1729224633778,-1500.0,0.00010892,2]
[340413991,1729224633788,-1500.0,0.00010894,2]
[340413992,1729224633798,-150.0,0.00010898,2]
[340413993,1729224633807,-150.0,0.00010899,2]
[340413994,1729224633817,-529.23904299,0.00010899,2]
[340413995,1729224633827,-529.23904299,0.00010899,2]
[340413996,1729224633837,-529.23904299,0.00010899,2]
[340413997,1729224633847,-529.23904299,0.00010899,2]
[340413998,1729224633857,-529.23904299,0.00010899,2]
[340413999,1729224633866,-529.23904299,0.00010899,2]
[340414000,1729224633876,-529.23904299,0.00010899,2]
[340414001,1729224633886,-529.23904299,0.00010899,2]
[340414002,1729224633895,-529.23904299,0.00010899,2]
[340414003,1729224633909,-180.976,0.000109,2]
[340414004,1729224633919,-1400.0,0.000109,3]
[340414005,1729224633929,-580.17207534,0.000109,2]
[340414006,1729224633939,-529.23904299,0.000109,2]
[340414007,1729224633950,-1500.0,0.00010906,2]
[340414008,1729224633961,-1160.485,0.00010908,2]
[340414009,1729224633970,-13623.701,0.00010908,2]
[340414010,1729224633981,-286.772,0.00010908,2]
[340414011,1729224633991,-5923.117,0.00010908,2]
[340414012,1729224634000,-1088.825,0.00010908,2]
[340414013,1729224634010,-150.0,0.00010914,2]
[340414014,1729224634020,-150.0,0.00010927,2]
[340414015,1729224634029,-1500.0,0.00010927,2]
[340414016,1729224634038,-150.0,0.00010933,2]
[340414017,1729224634047,-563.122,0.00010947,2]
[340414018,1729224634057,-1248.977,0.00010947,2]
[340414019,1729224634067,-1918.797,0.00010947,2]
[340414020,1729224634076,-3563.661242,0.00010951,2]
[340414021,1729224634086,-63604.8274999,0.00010951,2]
[340414022,1729224634095,-500.0,0.00010958,2]
[340414023,1729224634105,-500.0,0.00010958,2]
[340414024,1729224634114,-500.0,0.00010958,2]
[340414025,1729224634123,-594.07785944,0.00010958,2]
[340414026,1729224634133,-1276.48,0.00010958,2]
[340414027,1729224634142,-1276.48,0.00010958,2]
[340414028,1729224634151,-1276.48,0.00010958,2]
[340414029,1729224634162,-1276.48,0.00010958,2]
[340414030,1729224634171,-1276.48,0.00010958,2]
[340414031,1729224634181,-1276.48,0.00010958,2]
[340414032,1729224634190,-1276.48,0.00010958,2]
[340414033,1729224634199,-1276.48,0.00010958,2]
[340414034,1729224634209,-1276.48,0.00010958,2]
[340414035,1729224634218,-1276.48,0.00010958,2]
[340414036,1729224634227,-1276.48,0.00010958,2]
[340414037,1729224634236,-1276.48,0.00010958,2]
[340414038,1729224634246,-1276.48,0.00010958,2]
[340414039,1729224634255,-1276.48,0.00010958,2]
[340414040,1729224634264,-1276.48,0.00010958,2]
[340414041,1729224634273,-1276.48,0.00010958,2]
[340414042,1729224634283,-1276.48,0.00010958,2]
[340414043,1729224634292,-1276.48,0.00010958,2]
[340414044,1729224634302,-1276.48,0.00010958,2]
[340414045,1729224634311,-1276.48,0.00010958,2]
[340414046,1729224634320,-1276.48,0.00010958,2]
[340414047,1729224634330,-1276.48,0.00010958,2]
[340414048,1729224634340,-1276.48,0.00010958,2]
[340414049,1729224634350,-1276.5446371,0.00010958,2]
[340414050,1729224634359,-418.49600497,0.00010958,2]
[340414051,1729224634368,-500.0,0.00010958,2]
[340414052,1729224634378,-500.0,0.00010958,2]
[340414053,1729224634387,-500.0,0.00010958,2]
[340414054,1729224634396,-500.0,0.00010958,2]
[340414055,1729224634406,-500.0,0.00010958,2]
[340414056,1729224634416,-500.0,0.00010958,2]
[340414057,1729224634425,-500.0,0.00010958,2]
[340414058,1729224634435,-537.11349943,0.00010958,2]
[340414059,1729224634444,-500.0,0.00010958,2]
[340414060,1729224634453,-500.0,0.00010958,2]
[340414061,1729224634465,-500.0,0.00010958,2]
[340414062,1729224634474,-500.0,0.00010958,2]
[340414063,1729224634484,-500.0,0.00010958,2]
[340414064,1729224634493,-500.0,0.00010958,2]
[340414065,1729224634502,-500.0,0.00010958,2]
[340414066,1729224634511,-500.0,0.00010958,2]
[340414067,1729224634521,-500.0,0.00010958,2]
[340414068,1729224634530,-500.0,0.00010958,2]
[340414069,1729224634539,-500.0,0.00010958,2]
[340414070,1729224634548,-500.0,0.00010958,2]
[340414071,1729224634558,-500.0,0.00010958,2]
[340414072,1729224634567,-500.0,0.00010958,2]
[340414073,1729224634576,-500.0,0.00010958,2]
[340414074,1729224634586,-500.0,0.00010958,2]
[340414075,1729224634595,-417.16136194,0.00010958,2]
[340414076,1729224634604,-511.97,0.00010958,2]
[340414077,1729224634613,-511.97,0.00010958,2]
[340414078,1729224634622,-511.97,0.00010958,2]
[340414079,1729224634632,-511.97,0.00010958,2]
[340414080,1729224634641,-511.97,0.00010958,2]
[340414081,1729224634651,-511.97,0.00010958,2]
[340414082,1729224634661,-511.97,0.00010958,2]
[340414083,1729224634671,-511.97,0.00010958,2]
[340414084,1729224634680,-511.97,0.00010958,2]
[340414085,1729224634690,-511.97,0.00010958,2]
[340414086,1729224634699,-511.97,0.00010958,2]
[340414087,1729224634709,-511.97,0.00010958,2]
[340414088,1729224634718,-511.97,0.00010958,2]
[340414089,1729224634728,-511.97,0.00010958,2]
[340414090,1729224634737,-511.97,0.00010958,2]
[340414091,1729224634746,-511.97,0.00010958,2]
[340414092,1729224634756,-511.97,0.00010958,2]
[340414093,1729224634765,-511.97,0.00010958,2]
[340414094,1729224634774,-511.97,0.00010958,2]
[340414095,1729224634784,-511.97,0.00010958,2]
[340414096,1729224634793,-511.97,0.00010958,2]
[340414097,1729224634802,-511.97,0.00010958,2]
[340414098,1729224634812,-511.97,0.00010958,2]
[340414099,1729224634821,-512.20284033,0.00010958,2]
[340414100,1729224634830,-500.0,0.00010958,2]
[340414101,1729224634839,-500.0,0.00010958,2]
[340414102,1729224634849,-500.0,0.00010958,2]
[340414103,1729224634858,-500.0,0.00010958,2]
[340414104,1729224634867,-500.0,0.00010958,2]
[340414105,1729224634877,-291.16032996,0.00010958,2]
[340414106,1729224634886,-312.58626631,0.00010958,2]
[340414107,1729224634895,-500.0,0.00010958,2]
[340414108,1729224634909,-500.0,0.00010958,2]
[340414109,1729224634918,-500.0,0.00010958,2]
[340414110,1729224634927,-500.0,0.00010958,2]
[340414111,1729224634937,-500.0,0.00010958,2]
[340414112,1729224634947,-500.0,0.00010958,2]
[340414113,1729224634962,-500.0,0.00010958,2]
[340414114,1729224634978,-500.0,0.00010958,2]
[340414115,1729224634992,-500.0,0.00010958,2]
[340414116,1729224635007,-500.0,0.00010958,2]
[340414117,1729224635022,-500.0,0.00010958,2]
[340414118,1729224635037,-500.0,0.00010958,2]
[340414119,1729224635052,-500.0,0.00010958,2]
[340414120,1729224635068,-500.0,0.00010958,2]
[340414121,1729224635083,-500.0,0.00010958,2]
[340414122,1729224635096,-500.0,0.00010958,2]
[340414123,1729224635109,-500.0,0.00010958,2]
[340414124,1729224635124,-500.0,0.00010958,2]
[340414125,1729224635138,-500.0,0.00010958,2]
[340414126,1729224635150,-500.0,0.00010958,2]
[340414127,1729224635165,-500.0,0.00010958,2]
[340414128,1729224635178,-500.0,0.00010958,2]
[340414129,1729224635192,-500.0,0.00010958,2]
[340414130,1729224635207,-500.0,0.00010958,2]
[340414131,1729224635225,-500.0,0.00010958,2]
[340414132,1729224635240,-500.0,0.00010958,2]
[340414133,1729224635251,-500.0,0.00010958,2]
[340414134,1729224635261,-632.08924136,0.00010958,2]
[340414135,1729224635274,-500.0,0.00010958,2]
[340414136,1729224635288,-500.0,0.00010958,2]
[340414137,1729224635303,-500.0,0.00010958,2]
[340414138,1729224635317,-500.0,0.00010958,2]
[340414139,1729224635330,-500.0,0.00010958,2]
[340414140,1729224635344,-500.0,0.00010958,2]
[340414141,1729224635357,-500.0,0.00010958,2]
[340414142,1729224635369,-500.0,0.00010958,2]
[340414144,1729224635383,-500.0,0.00010958,2]
[340414145,1729224635395,-500.0,0.00010958,2]
[340414146,1729224635408,-500.0,0.00010958,2]
[340414147,1729224635421,-284.22719788,0.00010958,2]
[340414148,1729224635433,-500.0,0.00010958,2]
[340414149,1729224635444,-355.04940404,0.00010958,2]
[340414150,1729224635459,-500.0,0.00010958,2]
[340414151,1729224635471,-500.0,0.00010958,2]
[340414152,1729224635482,-511.53709997,0.00010958,2]
[340414153,1729224635494,-500.0,0.00010958,2]
[340414154,1729224635507,-500.0,0.00010958,2]
[340414155,1729224635520,-500.0,0.00010958,2]
[340414156,1729224635532,-500.0,0.00010958,2]
[340414157,1729224635544,-500.0,0.00010958,2]
[340414158,1729224635556,-500.0,0.00010958,2]
[340414159,1729224635567,-500.0,0.00010958,2]
[340414160,1729224635579,-500.0,0.00010958,2]
[340414161,1729224635591,-500.0,0.00010958,2]
[340414162,1729224635602,-500.0,0.00010958,2]
[340414163,1729224635614,-500.0,0.00010958,2]
[340414164,1729224635626,-500.0,0.00010958,2]
[340414165,1729224635639,-500.0,0.00010958,2]
[340414166,1729224635650,-500.0,0.00010958,2]
[340414167,1729224635664,-500.0,0.00010958,2]
[340414168,1729224635676,-500.0,0.00010958,2]
[340414169,1729224635688,-625.89774024,0.00010958,2]
[340414170,1729224635700,-565.61230521,0.00010958,2]
[340414171,1729224635712,-1132.17,0.00010958,2]
[340414172,1729224635724,-500.0,0.00010958,2]
[340414173,1729224635736,-1132.17,0.00010958,2]
[340414174,1729224635748,-500.0,0.00010958,2]
[340414175,1729224635761,-500.0,0.00010958,2]
[340414176,1729224635772,-304.27596139,0.00010958,2]
[340414177,1729224635786,-500.0,0.00010958,2]
[340414178,1729224635798,-500.0,0.00010958,2]
[340414179,1729224635810,-500.0,0.00010958,2]
[340414180,1729224635823,-525.8069622,0.00010958,2]
[340414181,1729224635836,-1132.17,0.00010958,2]
[340414182,1729224635848,-1132.17,0.00010958,2]
[340414183,1729224635860,-1132.17,0.00010958,2]
[340414184,1729224635872,-1132.17,0.00010958,2]
[340414185,1729224635885,-1132.17,0.00010958,2]
[340414186,1729224635897,-1132.17,0.00010958,2]
[340414187,1729224635911,-1132.17,0.00010958,2]
[340414188,1729224635923,-1132.17,0.00010958,2]
[340414189,1729224635935,-1132.17,0.00010958,2]
[340414190,1729224635948,-1132.17,0.00010958,2]
[340414191,1729224635962,-1132.17,0.00010958,2]
[340414192,1729224635974,-1132.17,0.00010958,2]
[340414193,1729224635987,-1132.17,0.00010958,2]
[340414194,1729224635999,-1132.17,0.00010958,2]
[340414195,1729224636012,-1132.17,0.00010958,2]
[340414196,1729224636025,-1132.17,0.00010958,2]
[340414197,1729224636039,-1132.17,0.00010958,2]
[340414198,1729224636053,-1132.17,0.00010958,2]
[340414199,1729224636065,-1132.17,0.00010958,2]
[340414200,1729224636080,-1132.17,0.00010958,2]
[340414201,1729224636092,-1132.17,0.00010958,2]
[340414202,1729224636106,-1132.17199229,0.00010958,2]
[340414203,1729224636119,-500.0,0.00010958,2]
[340414204,1729224636132,-500.0,0.00010958,2]
[340414205,1729224636147,-500.0,0.00010958,2]
[340414206,1729224636158,-500.0,0.00010958,2]
[340414207,1729224636172,-597.42066629,0.00010958,2]
[340414208,1729224636184,-820.03,0.00010958,2]
[340414209,1729224636196,-820.03,0.00010958,2]
[340414210,1729224636208,-820.03,0.00010958,2]
[340414211,1729224636222,-820.03,0.00010958,2]
[340414212,1729224636235,-820.03,0.00010958,2]
[340414213,1729224636249,-820.03,0.00010958,2]
[340414214,1729224636261,-500.0,0.00010958,2]
[340414215,1729224636273,-820.03,0.00010958,2]
[340414216,1729224636285,-500.0,0.00010958,2]
[340414217,1729224636296,-820.03,0.00010958,2]
[340414218,1729224636308,-473.32007356,0.00010958,2]
[340414219,1729224636320,-500.0,0.00010958,2]
[340414220,1729224636332,-820.03,0.00010958,2]
[340414221,1729224636344,-500.0,0.00010958,2]
[340414222,1729224636356,-500.0,0.00010958,2]
[340414223,1729224636368,-820.03,0.00010958,2]
[340414224,1729224636380,-500.0,0.00010958,2]
[340414225,1729224636392,-518.33021902,0.00010958,2]
[340414226,1729224636403,-500.0,0.00010958,2]
[340414227,1729224636416,-820.03,0.00010958,2]
[340414228,1729224636428,-584.04163414,0.00010958,2]
[340414229,1729224636439,-500.0,0.00010958,2]
[340414230,1729224636452,-820.03,0.00010958,2]
[340414231,1729224636464,-500.0,0.00010958,2]
[340414232,1729224636476,-820.03,0.00010958,2]
[340414233,1729224636487,-500.0,0.00010958,2]
[340414234,1729224636499,-820.03,0.00010958,2]
[340414235,1729224636511,-500.0,0.00010958,2]
[340414236,1729224636523,-820.03,0.00010958,2]
[340414237,1729224636536,-500.0,0.00010958,2]
[340414238,1729224636549,-500.0,0.00010958,2]
[340414239,1729224636561,-820.03,0.00010958,2]
[340414240,1729224636573,-500.0,0.00010958,2]
[340414241,1729224636584,-500.0,0.00010958,2]
[340414242,1729224636597,-565.10948264,0.00010958,2]
[340414243,1729224636611,-500.0,0.00010958,2]
[340414244,1729224636624,-500.0,0.00010958,2]
[340414245,1729224636636,-820.03,0.00010958,2]
[340414246,1729224636649,-500.0,0.00010958,2]
[340414247,1729224636661,-500.0,0.00010958,2]
[340414248,1729224636675,-820.03,0.00010958,2]
[340414249,1729224636687,-500.0,0.00010958,2]
[340414250,1729224636697,-500.0,0.00010958,2]
[340414251,1729224636706,-500.0,0.00010958,2]
[340414252,1729224636716,-820.03,0.00010958,2]
[340414253,1729224636726,-500.0,0.00010958,2]
[340414254,1729224636736,-500.0,0.00010958,2]
[340414255,1729224636747,-500.0,0.00010958,2]
[340414256,1729224637021,-820.03,0.00010958,2]
[340414257,1729224637045,-545.67886334,0.00010958,2]
[340414258,1729224637060,-500.0,0.00010958,2]
[340414259,1729224637072,-820.03,0.00010958,2]
[340414260,1729224637082,-515.43015701,0.00010958,2]
[340414261,1729224637093,-500.0,0.00010958,2]
[340414262,1729224637102,-820.03,0.00010958,2]
[340414263,1729224637112,-500.0,0.00010958,2]
[340414264,1729224637123,-820.03,0.00010958,2]
[340414265,1729224637134,-500.0,0.00010958,2]
[340414266,1729224637145,-500.0,0.00010958,2]
[340414267,1729224637155,-500.0,0.00010958,2]
[340414268,1729224637165,-820.16007742,0.00010958,2]
[340414269,1729224637174,-500.0,0.00010958,2]
[340414270,1729224637184,-620.28206944,0.00010958,2]
[340414271,1729224637363,-16.88793056,0.00010958,2]
[340414272,1729224637374,-500.0,0.00010958,2]
[340414273,1729224637384,-500.0,0.00010958,2]
[340414274,1729224637395,-637.17,0.00010958,2]
[340414275,1729224637405,-500.0,0.00010958,2]
[340414276,1729224637416,-637.17,0.00010958,2]
[340414277,1729224637425,-500.0,0.00010958,2]
[340414278,1729224637434,-500.0,0.00010958,2]
[340414279,1729224637443,-637.17,0.00010958,2]
[340414280,1729224637452,-500.0,0.00010958,2]
[340414281,1729224637461,-500.0,0.00010958,2]
[340414282,1729224637470,-637.17,0.00010958,2]
[340414283,1729224637479,-500.0,0.00010958,2]
[340414284,1729224637488,-500.0,0.00010958,2]
[340414285,1729224637497,-637.17,0.00010958,2]
[340414286,1729224637506,-500.0,0.00010958,2]
[340414287,1729224637515,-500.0,0.00010958,2]
[340414288,1729224637523,-637.17,0.00010958,2]
[340414289,1729224637533,-500.0,0.00010958,2]
[340414290,1729224637542,-500.0,0.00010958,2]
[340414291,1729224637551,-637.17,0.00010958,2]
[340414292,1729224637560,-500.0,0.00010958,2]
[340414293,1729224637569,-575.82955271,0.00010958,2]
[340414294,1729224637578,-12.45231826,0.00010958,2]
[340414295,1729224637605,-624.71768174,0.00010958,2]
[340414296,1729224637614,-80.14231826,0.00010958,2]
[340414297,1729224637626,-419.85768174,0.00010958,2]
[340414298,1729224637635,-500.0,0.00010958,2]
[340414299,1729224637644,-637.17,0.00010958,2]
[340414300,1729224637653,-500.0,0.00010958,2]
[340414301,1729224637662,-500.0,0.00010958,2]
[340414302,1729224637678,-637.17,0.00010958,2]
[340414303,1729224637687,-500.0,0.00010958,2]
[340414304,1729224637697,-637.17,0.00010958,2]
[340414305,1729224637708,-500.0,0.00010958,2]
[340414306,1729224637719,-500.0,0.00010958,2]
[340414307,1729224637730,-637.17,0.00010958,2]
[340414308,1729224637740,-500.0,0.00010958,2]
[340414309,1729224637749,-637.17,0.00010958,2]
[340414310,1729224637759,-500.0,0.00010958,2]
[340414311,1729224637768,-637.17,0.00010958,2]
[340414312,1729224637778,-500.0,0.00010958,2]
[340414313,1729224637787,-500.0,0.00010958,2]
[340414314,1729224637797,-637.17,0.00010958,2]
[340414315,1729224637806,-234.28163862,0.00010958,2]
[340414316,1729224637816,-370.15825782,0.00010958,2]
[340414317,1729224637840,-129.84174218,0.00010958,2]
[340414318,1729224637849,-211.5845588,0.00010958,2]